[Event "Titled Tuesday Blitz June 14 Late 2022"]
[White "Tatarinov, Dmitry"]
[Black "Bortnyk, Olexandr"]
[WhiteFideId "24160067"]
[BlackFideId "14120828"]
[WhiteElo "2302"]
[BlackElo "2723"]
[Result "0-1"]
[Round "02"]
[TimeControl "180+1"]
[Date "2022.06.14"]
[WhiteClock "0:00:00"]
[BlackClock "0:01:22"]

1. d4 {[%clk 0:02:57]}  d6 {[%clk 0:03:00]} 2. Nf3 {[%clk 0:02:56]}  Nf6 {[%clk 0:02:59]} 3. c4 {[%clk 0:02:57]}  g6 {[%clk 0:02:58]} 4. g3 {[%clk 0:02:56]}  Bg7 {[%clk 0:02:58]} 5. Bg2 {[%clk 0:02:57]}  O-O {[%clk 0:02:58]} 6. O-O {[%clk 0:02:57]}  Bf5 {[%clk 0:02:58]} 7. Nc3 {[%clk 0:02:57]}  Ne4 {[%clk 0:02:58]} 8. Nxe4 {[%clk 0:02:35]}  Bxe4 {[%clk 0:02:59]} 9. Bd2 {[%clk 0:02:31]}  c5 {[%clk 0:02:56]} 10. Bc3 {[%clk 0:02:30]}  Nc6 {[%clk 0:02:55]} 11. e3 {[%clk 0:02:30]}  cxd4 {[%clk 0:02:51]} 12. Nxd4 {[%clk 0:02:29]}  Bxg2 {[%clk 0:02:51]} 13. Kxg2 {[%clk 0:02:29]}  Ne5 {[%clk 0:02:49]} 14. b3 {[%clk 0:02:28]}  d5 {[%clk 0:02:48]} 15. Nf3 {[%clk 0:02:15]}  Nxf3 {[%clk 0:02:42]} 16. Bxg7 {[%clk 0:02:16]}  Kxg7 {[%clk 0:02:37]} 17. Qxf3 {[%clk 0:02:16]}  dxc4 {[%clk 0:02:38]} 18. Qxb7 {[%clk 0:02:09]}  cxb3 {[%clk 0:02:36]} 19. axb3 {[%clk 0:02:05]}  Qb8 {[%clk 0:02:28]} 20. Qxb8 {[%clk 0:02:01]}  Rfxb8 {[%clk 0:02:29]} 21. Ra3 {[%clk 0:02:01]}  Rb7 {[%clk 0:02:27]} 22. Rfa1 {[%clk 0:02:01]}  e6 {[%clk 0:02:27]} 23. g4 {[%clk 0:02:00]}  Kf6 {[%clk 0:02:27]} 24. h4 {[%clk 0:01:59]}  h6 {[%clk 0:02:25]} 25. Kg3 {[%clk 0:01:57]}  Kg7 {[%clk 0:02:15]} 26. Ra5 {[%clk 0:01:51]}  Kf6 {[%clk 0:02:09]} 27. R1a4 {[%clk 0:01:45]}  Kg7 {[%clk 0:02:08]} 28. h5 {[%clk 0:01:34]}  gxh5 {[%clk 0:02:06]} 29. gxh5 {[%clk 0:01:33]}  Rxb3 {[%clk 0:02:05]} 30. Rxa7 {[%clk 0:01:32]}  Rxa7 {[%clk 0:02:04]} 31. Rxa7 {[%clk 0:01:32]}  Rb5 {[%clk 0:02:04]} 32. Kh4 {[%clk 0:01:28]}  Rb1 {[%clk 0:02:03]} 33. Ra4 {[%clk 0:01:26]}  Rh1+ {[%clk 0:02:02]} 34. Kg4 {[%clk 0:01:25]}  f5+ {[%clk 0:02:02]} 35. Kg3 {[%clk 0:01:21]}  Rxh5 {[%clk 0:02:02]} 36. Ra8 {[%clk 0:01:18]}  Rg5+ {[%clk 0:01:59]} 37. Kh3 {[%clk 0:01:16]}  Rg6 {[%clk 0:01:54]} 38. Re8 {[%clk 0:01:13]}  Kf7 {[%clk 0:01:54]} 39. Rh8 {[%clk 0:01:12]}  Kg7 {[%clk 0:01:55]} 40. Re8 {[%clk 0:01:12]}  Kf6 {[%clk 0:01:56]} 41. f4 {[%clk 0:01:09]}  Rg1 {[%clk 0:01:55]} 42. Rh8 {[%clk 0:01:07]}  Ke7 {[%clk 0:01:55]} 43. Ra8 {[%clk 0:00:48]}  Kd6 {[%clk 0:01:53]} 44. Ra5 {[%clk 0:00:48]}  Re1 {[%clk 0:01:51]} 45. Re5 {[%clk 0:00:49]}  Rd1 {[%clk 0:01:49]} 46. Ra5 {[%clk 0:00:47]}  Rd3 {[%clk 0:01:49]} 47. Ra6+ {[%clk 0:00:41]}  Ke7 {[%clk 0:01:49]} 48. Ra7+ {[%clk 0:00:36]}  Kf6 {[%clk 0:01:49]} 49. Rh7 {[%clk 0:00:35]}  Rxe3+ {[%clk 0:01:49]} 50. Kg2 {[%clk 0:00:36]}  Kg6 {[%clk 0:01:48]} 51. Rh8 {[%clk 0:00:34]}  Kh5 {[%clk 0:01:41]} 52. Kf2 {[%clk 0:00:33]}  Ra3 {[%clk 0:01:41]} 53. Re8 {[%clk 0:00:32]}  Ra6 {[%clk 0:01:40]} 54. Rg8 {[%clk 0:00:32]}  Kh4 {[%clk 0:01:39]} 55. Rg6 {[%clk 0:00:27]}  h5 {[%clk 0:01:39]} 56. Kf3 {[%clk 0:00:24]}  Ra3+ {[%clk 0:01:37]} 57. Kf2 {[%clk 0:00:23]}  Ra6 {[%clk 0:01:36]} 58. Kf3 {[%clk 0:00:23]}  Rb6 {[%clk 0:01:37]} 59. Kf2 {[%clk 0:00:22]}  Rb4 {[%clk 0:01:27]} 60. Kf3 {[%clk 0:00:19]}  Rb3+ {[%clk 0:01:26]} 61. Kf2 {[%clk 0:00:15]}  Kh3 {[%clk 0:01:23]} 62. Rxe6 {[%clk 0:00:14]}  Kg4 {[%clk 0:01:23]} 63. Rg6+ {[%clk 0:00:14]}  Kxf4 {[%clk 0:01:23]} 64. Rg8 {[%clk 0:00:13]}  h4 {[%clk 0:01:23]} 65. Rh8 {[%clk 0:00:04]}  Rb2+ {[%clk 0:01:24]} 66. Kg1 {[%clk 0:00:04]}  Kg3 {[%clk 0:01:24]} 67. Rg8+ {[%clk 0:00:04]}  Kf3 {[%clk 0:01:25]} 68. Rh8 {[%clk 0:00:04]}  Rg2+ {[%clk 0:01:25]} 69. Kf1 {[%clk 0:00:03]}  Rg4 {[%clk 0:01:24]} 70. Rh5 {[%clk 0:00:00]}  f4 {[%clk 0:01:22]} 0-1


[Site "https://www.chess.com"]

[Event "Titled Tuesday Blitz June 14 Late 2022"]
[White "Vachier-Lagrave, Maxime"]
[Black "Yaksin, Oleg"]
[WhiteFideId "623539"]
[BlackFideId "24105880"]
[WhiteElo "2813"]
[BlackElo "2256"]
[Result "1-0"]
[Round "02"]
[TimeControl "180+1"]
[Date "2022.06.14"]
[WhiteClock "0:01:29"]
[BlackClock "0:00:18"]

1. c4 {[%clk 0:03:00]}  e5 {[%clk 0:02:57]} 2. Nc3 {[%clk 0:02:59]}  Nc6 {[%clk 0:02:58]} 3. Nf3 {[%clk 0:02:58]}  Nf6 {[%clk 0:02:57]} 4. e3 {[%clk 0:02:58]}  Bb4 {[%clk 0:02:57]} 5. Qc2 {[%clk 0:02:58]}  O-O {[%clk 0:02:55]} 6. Nd5 {[%clk 0:02:57]}  Be7 {[%clk 0:02:55]} 7. Ng5 {[%clk 0:02:45]}  g6 {[%clk 0:02:40]} 8. h4 {[%clk 0:02:45]}  Nxd5 {[%clk 0:02:37]} 9. cxd5 {[%clk 0:02:45]}  Nb4 {[%clk 0:02:37]} 10. Qb3 {[%clk 0:02:44]}  c6 {[%clk 0:02:26]} 11. d6 {[%clk 0:02:45]}  Bxd6 {[%clk 0:02:25]} 12. Bc4 {[%clk 0:02:46]}  Qe7 {[%clk 0:02:17]} 13. a3 {[%clk 0:02:44]}  Na6 {[%clk 0:02:14]} 14. Qc2 {[%clk 0:02:43]}  b5 {[%clk 0:02:09]} 15. Ba2 {[%clk 0:02:38]}  Nc5 {[%clk 0:02:05]} 16. b4 {[%clk 0:02:33]}  Ne6 {[%clk 0:02:04]} 17. Bb2 {[%clk 0:02:28]}  Nxg5 {[%clk 0:01:58]} 18. hxg5 {[%clk 0:02:29]}  Qxg5 {[%clk 0:01:57]} 19. O-O-O {[%clk 0:02:29]}  a5 {[%clk 0:01:54]} 20. f4 {[%clk 0:02:28]}  Qe7 {[%clk 0:01:42]} 21. Rh6 {[%clk 0:02:20]}  Kg7 {[%clk 0:01:39]} 22. Rdh1 {[%clk 0:02:20]}  Rh8 {[%clk 0:01:38]} 23. Qe4 {[%clk 0:02:15]}  f6 {[%clk 0:01:25]} 24. Qxg6+ {[%clk 0:02:14]}  hxg6 {[%clk 0:01:17]} 25. Rxh8 {[%clk 0:02:15]}  f5 {[%clk 0:01:00]} 26. Rg8+ {[%clk 0:01:44]}  Kf6 {[%clk 0:00:58]} 27. Rh6 {[%clk 0:01:45]}  Qg7 {[%clk 0:00:32]} 28. fxe5+ {[%clk 0:01:38]}  Kg5 {[%clk 0:00:31]} 29. Rxg7 {[%clk 0:01:36]}  Kxh6 {[%clk 0:00:31]} 30. exd6 {[%clk 0:01:36]}  axb4 {[%clk 0:00:30]} 31. Bf7 {[%clk 0:01:35]}  bxa3 {[%clk 0:00:24]} 32. Rxg6+ {[%clk 0:01:35]}  Kh7 {[%clk 0:00:24]} 33. Ba1 {[%clk 0:01:30]}  Ra4 {[%clk 0:00:20]} 34. Rg8 {[%clk 0:01:28]}  Kh6 {[%clk 0:00:20]} 35. Bf6 {[%clk 0:01:29]}  a2 {[%clk 0:00:18]} 36. Rh8# {[%clk 0:01:29]} 1-0


[Site "https://www.chess.com"]

[Event "Titled Tuesday Blitz June 14 Late 2022"]
[White "Wachinger, Guenther"]
[Black "Tarigan, Gilbert Elroy"]
[WhiteFideId "4604261"]
[BlackFideId "7108133"]
[WhiteElo "2212"]
[BlackElo "1908"]
[Result "1-0"]
[Round "02"]
[TimeControl "180+1"]
[Date "2022.06.15"]
[WhiteClock "0:00:03"]
[BlackClock "0:00:02"]

1. e4 {[%clk 0:03:00]}  g6 {[%clk 0:02:58]} 2. d4 {[%clk 0:02:59]}  d6 {[%clk 0:02:58]} 3. Nc3 {[%clk 0:02:54]}  Bg7 {[%clk 0:02:58]} 4. Nf3 {[%clk 0:02:54]}  Bg4 {[%clk 0:02:57]} 5. Be3 {[%clk 0:02:53]}  e6 {[%clk 0:02:56]} 6. Be2 {[%clk 0:02:50]}  Ne7 {[%clk 0:02:56]} 7. Qd2 {[%clk 0:02:51]}  h6 {[%clk 0:02:54]} 8. Ng1 {[%clk 0:02:48]}  Bxe2 {[%clk 0:02:53]} 9. Ngxe2 {[%clk 0:02:48]}  Nd7 {[%clk 0:02:53]} 10. O-O-O {[%clk 0:02:41]}  a6 {[%clk 0:02:47]} 11. f4 {[%clk 0:02:38]}  d5 {[%clk 0:02:44]} 12. e5 {[%clk 0:02:27]}  b5 {[%clk 0:02:40]} 13. g4 {[%clk 0:02:27]}  Nb6 {[%clk 0:02:31]} 14. b3 {[%clk 0:02:25]}  b4 {[%clk 0:02:29]} 15. Nb1 {[%clk 0:02:22]}  a5 {[%clk 0:02:27]} 16. Ng3 {[%clk 0:02:22]}  Qd7 {[%clk 0:02:24]} 17. Rdf1 {[%clk 0:02:16]}  Kd8 {[%clk 0:02:07]} 18. f5 {[%clk 0:02:15]}  exf5 {[%clk 0:01:57]} 19. gxf5 {[%clk 0:02:14]}  Nxf5 {[%clk 0:01:55]} 20. Nxf5 {[%clk 0:02:14]}  gxf5 {[%clk 0:01:56]} 21. Rhg1 {[%clk 0:02:13]}  Bf8 {[%clk 0:01:54]} 22. Qf2 {[%clk 0:02:08]}  a4 {[%clk 0:01:34]} 23. Qxf5 {[%clk 0:02:08]}  Qxf5 {[%clk 0:01:34]} 24. Rxf5 {[%clk 0:02:08]}  axb3 {[%clk 0:01:35]} 25. axb3 {[%clk 0:02:08]}  Ke8 {[%clk 0:01:35]} 26. Rgf1 {[%clk 0:02:04]}  Rh7 {[%clk 0:01:28]} 27. e6 {[%clk 0:01:59]}  Nc8 {[%clk 0:01:03]} 28. Rxf7 {[%clk 0:01:38]}  Rxf7 {[%clk 0:01:01]} 29. exf7+ {[%clk 0:01:39]}  Kd7 {[%clk 0:01:00]} 30. Rf6 {[%clk 0:00:51]}  Nd6 {[%clk 0:00:56]} 31. Bxh6 {[%clk 0:00:48]}  Bxh6+ {[%clk 0:00:46]} 32. Rxh6 {[%clk 0:00:49]}  Nxf7 {[%clk 0:00:45]} 33. Rh7 {[%clk 0:00:46]}  Ke6 {[%clk 0:00:45]} 34. Nd2 {[%clk 0:00:43]}  Ra1+ {[%clk 0:00:30]} 35. Kb2 {[%clk 0:00:43]}  Rd1 {[%clk 0:00:19]} 36. Nf3 {[%clk 0:00:42]}  c6 {[%clk 0:00:19]} 37. h4 {[%clk 0:00:17]}  Kf6 {[%clk 0:00:14]} 38. Ng5 {[%clk 0:00:03]}  Nxg5 {[%clk 0:00:06]} 39. hxg5+ {[%clk 0:00:04]}  Kxg5 {[%clk 0:00:06]} 40. Rc7 {[%clk 0:00:04]}  Rxd4 {[%clk 0:00:05]} 41. Rxc6 {[%clk 0:00:05]}  Kf5 {[%clk 0:00:04]} 42. Rb6 {[%clk 0:00:02]}  Ke5 {[%clk 0:00:04]} 43. Kc1 {[%clk 0:00:02]}  Rh4 {[%clk 0:00:02]} 44. Rg6 {[%clk 0:00:02]}  Kd4 {[%clk 0:00:02]} 45. Kb2 {[%clk 0:00:03]}  Kc5 {[%clk 0:00:02]} 46. Rg8 {[%clk 0:00:02]}  Rh2 {[%clk 0:00:02]} 47. Rc8+ {[%clk 0:00:03]}  Kd4 {[%clk 0:00:03]} 48. Rg8 {[%clk 0:00:03]}  Kc5 {[%clk 0:00:03]} 49. Rg4 {[%clk 0:00:03]}  Rf2 {[%clk 0:00:03]} 50. Rg5 {[%clk 0:00:04]}  Rxc2+ {[%clk 0:00:02]} 51. Kxc2 {[%clk 0:00:03]} 1-0


[Site "https://www.chess.com"]

[Event "Titled Tuesday Blitz June 14 Late 2022"]
[White "Zhigalko, Sergei"]
[Black "Florescu, Codrut-Constantin"]
[WhiteFideId "13502956"]
[BlackFideId "1202200"]
[WhiteElo "2662"]
[BlackElo "2191"]
[Result "1-0"]
[Round "02"]
[TimeControl "180+1"]
[Date "2022.06.14"]
[WhiteClock "0:00:27"]
[BlackClock "0:00:35"]

1. e4 {[%clk 0:03:00]}  c5 {[%clk 0:02:59]} 2. Nf3 {[%clk 0:03:00]}  e6 {[%clk 0:02:59]} 3. c3 {[%clk 0:03:00]}  Nf6 {[%clk 0:02:58]} 4. e5 {[%clk 0:03:00]}  Nd5 {[%clk 0:02:58]} 5. Bc4 {[%clk 0:03:00]}  d6 {[%clk 0:02:58]} 6. d4 {[%clk 0:03:00]}  cxd4 {[%clk 0:02:57]} 7. cxd4 {[%clk 0:03:01]}  Nc6 {[%clk 0:02:58]} 8. O-O {[%clk 0:03:01]}  Be7 {[%clk 0:02:58]} 9. Bd2 {[%clk 0:03:01]}  O-O {[%clk 0:02:57]} 10. Nc3 {[%clk 0:03:01]}  Nxc3 {[%clk 0:02:57]} 11. Bxc3 {[%clk 0:03:01]}  dxe5 {[%clk 0:02:56]} 12. dxe5 {[%clk 0:03:01]}  a6 {[%clk 0:02:46]} 13. Bd3 {[%clk 0:03:01]}  g6 {[%clk 0:02:36]} 14. Qe2 {[%clk 0:02:54]}  Qc7 {[%clk 0:02:35]} 15. h4 {[%clk 0:02:34]}  b5 {[%clk 0:02:34]} 16. h5 {[%clk 0:02:29]}  Bb7 {[%clk 0:02:32]} 17. Rac1 {[%clk 0:02:20]}  Rfd8 {[%clk 0:02:30]} 18. Rfe1 {[%clk 0:02:19]}  Rd7 {[%clk 0:02:22]} 19. Bd2 {[%clk 0:02:07]}  Qd8 {[%clk 0:02:12]} 20. Be4 {[%clk 0:02:03]}  Nd4 {[%clk 0:02:04]} 21. Nxd4 {[%clk 0:01:57]}  Bxe4 {[%clk 0:01:47]} 22. Ba5 {[%clk 0:01:45]}  Qxa5 {[%clk 0:01:37]} 23. Qxe4 {[%clk 0:01:45]}  Rf8 {[%clk 0:01:29]} 24. hxg6 {[%clk 0:01:41]}  hxg6 {[%clk 0:01:28]} 25. Nxe6 {[%clk 0:01:40]}  Re8 {[%clk 0:01:18]} 26. Qc6 {[%clk 0:01:10]}  Qd2 {[%clk 0:01:08]} 27. Re2 {[%clk 0:00:45]}  Qd3 {[%clk 0:00:55]} 28. Nf4 {[%clk 0:00:33]}  Qd4 {[%clk 0:00:49]} 29. e6 {[%clk 0:00:29]}  Qxf4 {[%clk 0:00:35]} 30. exd7 {[%clk 0:00:27]} 1-0


[Site "https://www.chess.com"]

[Event "Titled Tuesday Blitz June 14 Late 2022"]
[White "Acosta, Pablo Ismael"]
[Black "Vachier-Lagrave, Maxime"]
[WhiteFideId "124311"]
[BlackFideId "623539"]
[WhiteElo "2313"]
[BlackElo "2813"]
[Result "1-0"]
[Round "03"]
[TimeControl "180+1"]
[Date "2022.06.14"]
[WhiteClock "0:00:11"]
[BlackClock "0:00:20"]

1. d4 {[%clk 0:03:00]}  d5 {[%clk 0:02:58]} 2. c4 {[%clk 0:03:01]}  c6 {[%clk 0:02:59]} 3. Nf3 {[%clk 0:03:00]}  Nf6 {[%clk 0:02:59]} 4. e3 {[%clk 0:03:00]}  Bf5 {[%clk 0:02:58]} 5. Nc3 {[%clk 0:02:59]}  e6 {[%clk 0:02:58]} 6. Qb3 {[%clk 0:02:56]}  Qc7 {[%clk 0:02:53]} 7. Be2 {[%clk 0:02:56]}  h6 {[%clk 0:02:52]} 8. O-O {[%clk 0:02:54]}  Nbd7 {[%clk 0:02:51]} 9. a4 {[%clk 0:02:47]}  a5 {[%clk 0:02:45]} 10. Bd2 {[%clk 0:02:42]}  Bb4 {[%clk 0:02:42]} 11. Rac1 {[%clk 0:02:41]}  Rc8 {[%clk 0:02:34]} 12. cxd5 {[%clk 0:02:32]}  exd5 {[%clk 0:02:34]} 13. Nb5 {[%clk 0:02:20]}  Qb8 {[%clk 0:02:34]} 14. Na3 {[%clk 0:02:12]}  Qd6 {[%clk 0:02:20]} 15. Bxb4 {[%clk 0:01:53]}  Qxb4 {[%clk 0:02:08]} 16. Qxb4 {[%clk 0:01:43]}  axb4 {[%clk 0:02:09]} 17. Nc2 {[%clk 0:01:44]}  b3 {[%clk 0:01:59]} 18. Na1 {[%clk 0:01:41]}  Ra8 {[%clk 0:01:59]} 19. Nxb3 {[%clk 0:01:39]}  Rxa4 {[%clk 0:01:39]} 20. Ra1 {[%clk 0:01:37]}  Rb4 {[%clk 0:01:39]} 21. Nfd2 {[%clk 0:01:08]}  Ke7 {[%clk 0:01:35]} 22. Ra3 {[%clk 0:01:08]}  Ne8 {[%clk 0:01:30]} 23. Rc1 {[%clk 0:01:05]}  Nd6 {[%clk 0:01:28]} 24. f3 {[%clk 0:01:02]}  Re8 {[%clk 0:01:26]} 25. Kf2 {[%clk 0:01:01]}  Kf8 {[%clk 0:01:22]} 26. Ra7 {[%clk 0:01:01]}  g5 {[%clk 0:01:16]} 27. Rc3 {[%clk 0:00:59]}  Nf6 {[%clk 0:01:13]} 28. h3 {[%clk 0:00:56]}  h5 {[%clk 0:01:10]} 29. g4 {[%clk 0:00:54]}  hxg4 {[%clk 0:01:09]} 30. hxg4 {[%clk 0:00:54]}  Bg6 {[%clk 0:01:08]} 31. Ra2 {[%clk 0:00:37]}  Kg7 {[%clk 0:01:01]} 32. Nc5 {[%clk 0:00:37]}  Rh8 {[%clk 0:00:59]} 33. Kg2 {[%clk 0:00:35]}  Nfe8 {[%clk 0:00:56]} 34. Rb3 {[%clk 0:00:34]}  Rxb3 {[%clk 0:00:53]} 35. Ncxb3 {[%clk 0:00:33]}  f5 {[%clk 0:00:48]} 36. Ra7 {[%clk 0:00:27]}  fxg4 {[%clk 0:00:47]} 37. fxg4 {[%clk 0:00:27]}  Rf8 {[%clk 0:00:37]} 38. Nc5 {[%clk 0:00:26]}  Rf7 {[%clk 0:00:37]} 39. Nf3 {[%clk 0:00:22]}  Be4 {[%clk 0:00:34]} 40. Nxe4 {[%clk 0:00:19]}  Nxe4 {[%clk 0:00:35]} 41. Bd3 {[%clk 0:00:20]}  N8d6 {[%clk 0:00:32]} 42. Be2 {[%clk 0:00:13]}  Re7 {[%clk 0:00:22]} 43. Ra8 {[%clk 0:00:13]}  Nf6 {[%clk 0:00:20]} 44. Ne5 {[%clk 0:00:12]}  Nf7 {[%clk 0:00:20]} 45. Nxf7 {[%clk 0:00:12]}  Kxf7 {[%clk 0:00:20]} 46. Kf2 {[%clk 0:00:13]}  Ne4+ {[%clk 0:00:21]} 47. Ke1 {[%clk 0:00:13]}  Nd6 {[%clk 0:00:21]} 48. Kf2 {[%clk 0:00:12]}  Kg7 {[%clk 0:00:21]} 49. Bd3 {[%clk 0:00:12]}  Ne8 {[%clk 0:00:20]} 50. Rb8 {[%clk 0:00:11]}  Nf6 {[%clk 0:00:20]} 51. Bf5 {[%clk 0:00:11]}  Ne8 {[%clk 0:00:21]} 52. b4 {[%clk 0:00:10]}  Nd6 {[%clk 0:00:21]} 53. Bd3 {[%clk 0:00:10]}  Rf7+ {[%clk 0:00:21]} 54. Ke2 {[%clk 0:00:11]}  Kf6 {[%clk 0:00:22]} 55. Rh8 {[%clk 0:00:10]}  Re7 {[%clk 0:00:20]} 56. Rh6+ {[%clk 0:00:10]}  Kg7 {[%clk 0:00:19]} 57. Rxd6 {[%clk 0:00:11]}  Rf7 {[%clk 0:00:20]} 58. Rg6+ {[%clk 0:00:11]} 1-0


[Site "https://www.chess.com"]

[Event "Titled Tuesday Blitz June 14 Late 2022"]
[White "Aldokhin, Ivan"]
[Black "Jian, Alex"]
[WhiteFideId "24115720"]
[BlackFideId "30901022"]
[WhiteElo "2231"]
[BlackElo "2111"]
[Result "1-0"]
[Round "03"]
[TimeControl "180+1"]
[Date "2022.06.15"]
[WhiteClock "0:00:06"]
[BlackClock "0:00:06"]

1. e4 {[%clk 0:03:00]}  c5 {[%clk 0:02:59]} 2. Nf3 {[%clk 0:03:01]}  e6 {[%clk 0:02:59]} 3. d4 {[%clk 0:03:01]}  cxd4 {[%clk 0:03:00]} 4. Nxd4 {[%clk 0:03:02]}  a6 {[%clk 0:03:00]} 5. Nc3 {[%clk 0:03:03]}  Qc7 {[%clk 0:03:00]} 6. Bd3 {[%clk 0:03:03]}  Nf6 {[%clk 0:03:00]} 7. Qe2 {[%clk 0:03:03]}  d6 {[%clk 0:02:59]} 8. Bd2 {[%clk 0:03:03]}  Nc6 {[%clk 0:02:56]} 9. Nxc6 {[%clk 0:02:59]}  bxc6 {[%clk 0:02:55]} 10. O-O {[%clk 0:02:57]}  Be7 {[%clk 0:02:47]} 11. f4 {[%clk 0:02:57]}  Qb6+ {[%clk 0:02:30]} 12. Kh1 {[%clk 0:02:56]}  Qxb2 {[%clk 0:02:25]} 13. Rab1 {[%clk 0:02:44]}  Qa3 {[%clk 0:02:24]} 14. Rb3 {[%clk 0:02:43]}  Qc5 {[%clk 0:02:22]} 15. Na4 {[%clk 0:02:43]}  Qh5 {[%clk 0:02:14]} 16. Qxh5 {[%clk 0:02:39]}  Nxh5 {[%clk 0:02:13]} 17. Nb6 {[%clk 0:02:40]}  Rb8 {[%clk 0:02:05]} 18. Nxc8 {[%clk 0:02:39]}  Rxc8 {[%clk 0:02:05]} 19. Bxa6 {[%clk 0:02:40]}  Rd8 {[%clk 0:01:46]} 20. Rb7 {[%clk 0:02:02]}  Nf6 {[%clk 0:01:28]} 21. Bd3 {[%clk 0:02:01]}  Rd7 {[%clk 0:01:21]} 22. Rfb1 {[%clk 0:01:55]}  O-O {[%clk 0:01:08]} 23. Rxd7 {[%clk 0:01:47]}  Nxd7 {[%clk 0:01:08]} 24. Rb7 {[%clk 0:01:48]}  Rb8 {[%clk 0:01:06]} 25. Ba6 {[%clk 0:01:34]}  Rd8 {[%clk 0:00:21]} 26. Ba5 {[%clk 0:01:14]}  Ra8 {[%clk 0:00:13]} 27. Rxd7 {[%clk 0:01:01]}  Rxa6 {[%clk 0:00:13]} 28. Rxe7 {[%clk 0:00:59]}  Kf8 {[%clk 0:00:13]} 29. Bd8 {[%clk 0:00:50]}  Rxa2 {[%clk 0:00:13]} 30. Kg1 {[%clk 0:00:40]}  Ra8 {[%clk 0:00:11]} 31. Rd7 {[%clk 0:00:34]}  Ke8 {[%clk 0:00:11]} 32. Rxd6 {[%clk 0:00:31]}  Rxd8 {[%clk 0:00:12]} 33. Rxd8+ {[%clk 0:00:20]}  Kxd8 {[%clk 0:00:12]} 34. Kf2 {[%clk 0:00:21]}  f6 {[%clk 0:00:10]} 35. Ke3 {[%clk 0:00:22]}  e5 {[%clk 0:00:06]} 36. f5 {[%clk 0:00:10]}  Kc7 {[%clk 0:00:06]} 37. Kd3 {[%clk 0:00:11]}  Kb6 {[%clk 0:00:06]} 38. Kc4 {[%clk 0:00:11]}  h6 {[%clk 0:00:05]} 39. g4 {[%clk 0:00:08]}  Kb7 {[%clk 0:00:03]} 40. Kc5 {[%clk 0:00:07]}  Kc7 {[%clk 0:00:03]} 41. c4 {[%clk 0:00:06]}  Kd7 {[%clk 0:00:02]} 42. Kb6 {[%clk 0:00:05]}  Kd6 {[%clk 0:00:02]} 43. c5+ {[%clk 0:00:06]}  Kd7 {[%clk 0:00:02]} 44. Kb7 {[%clk 0:00:06]}  Kd8 {[%clk 0:00:01]} 45. Kxc6 {[%clk 0:00:06]}  Ke7 {[%clk 0:00:01]} 46. Kc7 {[%clk 0:00:06]}  Ke8 {[%clk 0:00:02]} 47. c6 {[%clk 0:00:04]}  Ke7 {[%clk 0:00:03]} 48. Kb8 {[%clk 0:00:04]}  Kd6 {[%clk 0:00:03]} 49. c7 {[%clk 0:00:05]}  Kc5 {[%clk 0:00:04]} 50. c8=Q+ {[%clk 0:00:06]}  Kd4 {[%clk 0:00:05]} 51. Qb7 {[%clk 0:00:06]}  Ke3 {[%clk 0:00:05]} 52. Qxg7 {[%clk 0:00:06]}  Kf4 {[%clk 0:00:06]} 53. Qxf6 {[%clk 0:00:07]}  Kxg4 {[%clk 0:00:07]} 54. Qxe5 {[%clk 0:00:06]}  Kg5 {[%clk 0:00:06]} 55. Qg3+ {[%clk 0:00:04]}  Kf6 {[%clk 0:00:07]} 56. Qf4 {[%clk 0:00:05]}  Kf7 {[%clk 0:00:07]} 57. e5 {[%clk 0:00:06]}  Ke7 {[%clk 0:00:06]} 58. Qxh6 {[%clk 0:00:06]} 1-0


[Site "https://www.chess.com"]

[Event "Titled Tuesday Blitz June 14 Late 2022"]
[White "Al-Tarboush, Ward"]
[Black "Rios Escobar, Adan"]
[WhiteFideId "7601450"]
[BlackFideId "3403645"]
[WhiteElo "2249"]
[BlackElo "2431"]
[Result "0-1"]
[Round "03"]
[TimeControl "180+1"]
[Date "2022.06.15"]
[WhiteClock "0:00:05"]
[BlackClock "0:00:14"]

1. e4 {[%clk 0:03:00]}  c5 {[%clk 0:02:59]} 2. Nf3 {[%clk 0:03:00]}  d6 {[%clk 0:02:59]} 3. d4 {[%clk 0:03:01]}  cxd4 {[%clk 0:02:59]} 4. Nxd4 {[%clk 0:03:01]}  Nf6 {[%clk 0:03:00]} 5. Nc3 {[%clk 0:03:02]}  a6 {[%clk 0:03:00]} 6. h3 {[%clk 0:03:02]}  e5 {[%clk 0:02:59]} 7. Nde2 {[%clk 0:03:02]}  h5 {[%clk 0:02:40]} 8. Bg5 {[%clk 0:03:01]}  Be7 {[%clk 0:02:36]} 9. g3 {[%clk 0:02:55]}  Be6 {[%clk 0:02:36]} 10. Bg2 {[%clk 0:02:53]}  Nbd7 {[%clk 0:02:34]} 11. a4 {[%clk 0:02:53]}  Rc8 {[%clk 0:02:32]} 12. O-O {[%clk 0:02:52]}  g6 {[%clk 0:02:10]} 13. b3 {[%clk 0:02:48]}  Kf8 {[%clk 0:02:08]} 14. f4 {[%clk 0:02:48]}  exf4 {[%clk 0:01:58]} 15. gxf4 {[%clk 0:02:44]}  Nc5 {[%clk 0:01:42]} 16. b4 {[%clk 0:02:44]}  Ncd7 {[%clk 0:01:32]} 17. f5 {[%clk 0:02:36]}  gxf5 {[%clk 0:01:30]} 18. exf5 {[%clk 0:02:37]}  Bc4 {[%clk 0:01:29]} 19. Qd4 {[%clk 0:02:37]}  Ne5 {[%clk 0:01:23]} 20. Nf4 {[%clk 0:02:31]}  Rg8 {[%clk 0:01:18]} 21. h4 {[%clk 0:02:11]}  Bxf1 {[%clk 0:01:14]} 22. Rxf1 {[%clk 0:02:12]}  Nfg4 {[%clk 0:00:45]} 23. Ne4 {[%clk 0:01:31]}  Bxg5 {[%clk 0:00:38]} 24. Nxg5 {[%clk 0:01:32]}  Rxg5 {[%clk 0:00:38]} 25. hxg5 {[%clk 0:01:31]}  Qxg5 {[%clk 0:00:37]} 26. Qxd6+ {[%clk 0:01:30]}  Kg8 {[%clk 0:00:33]} 27. Qd2 {[%clk 0:01:03]}  Kh7 {[%clk 0:00:17]} 28. c3 {[%clk 0:00:44]}  Rg8 {[%clk 0:00:16]} 29. Qe2 {[%clk 0:00:29]}  Qh4 {[%clk 0:00:16]} 30. Nh3 {[%clk 0:00:25]}  Nf6 {[%clk 0:00:09]} 31. Qxe5 {[%clk 0:00:15]}  Qxh3 {[%clk 0:00:09]} 32. Qe2 {[%clk 0:00:08]}  Qh4 {[%clk 0:00:07]} 33. Qf2 {[%clk 0:00:05]}  Qg5 {[%clk 0:00:05]} 34. Qf3 {[%clk 0:00:03]}  Ng4 {[%clk 0:00:05]} 35. Re1 {[%clk 0:00:02]}  Qh4 {[%clk 0:00:05]} 36. Re4 {[%clk 0:00:01]}  Qh2+ {[%clk 0:00:05]} 37. Kf1 {[%clk 0:00:02]}  Qh4 {[%clk 0:00:04]} 38. f6 {[%clk 0:00:01]}  Nh2+ {[%clk 0:00:04]} 39. Ke2 {[%clk 0:00:01]}  Nxf3 {[%clk 0:00:05]} 40. Rxh4 {[%clk 0:00:02]}  Nxh4 {[%clk 0:00:06]} 41. Be4+ {[%clk 0:00:02]}  Ng6 {[%clk 0:00:06]} 42. Ke3 {[%clk 0:00:03]}  Re8 {[%clk 0:00:06]} 43. Kd4 {[%clk 0:00:04]}  h4 {[%clk 0:00:06]} 44. Bf5 {[%clk 0:00:04]}  Rd8+ {[%clk 0:00:05]} 45. Ke4 {[%clk 0:00:04]}  Re8+ {[%clk 0:00:06]} 46. Kf3 {[%clk 0:00:04]}  Re5 {[%clk 0:00:06]} 47. Bc8 {[%clk 0:00:03]}  Kh6 {[%clk 0:00:06]} 48. Bxb7 {[%clk 0:00:04]}  Re6 {[%clk 0:00:06]} 49. b5 {[%clk 0:00:02]}  Rxf6+ {[%clk 0:00:06]} 50. Kg4 {[%clk 0:00:02]}  axb5 {[%clk 0:00:07]} 51. a5 {[%clk 0:00:01]}  Ne5+ {[%clk 0:00:06]} 52. Kxh4 {[%clk 0:00:02]}  Kg6 {[%clk 0:00:07]} 53. a6 {[%clk 0:00:02]}  Nd7 {[%clk 0:00:07]} 54. a7 {[%clk 0:00:03]}  Nb6 {[%clk 0:00:08]} 55. a8=Q {[%clk 0:00:03]}  Nxa8 {[%clk 0:00:08]} 56. Bxa8 {[%clk 0:00:04]}  Rf4+ {[%clk 0:00:08]} 57. Kg3 {[%clk 0:00:04]}  Rc4 {[%clk 0:00:09]} 58. Kf2 {[%clk 0:00:03]}  Rxc3 {[%clk 0:00:10]} 59. Be4+ {[%clk 0:00:04]}  Kf6 {[%clk 0:00:10]} 60. Bd5 {[%clk 0:00:05]}  b4 {[%clk 0:00:10]} 61. Ke2 {[%clk 0:00:05]}  Ke7 {[%clk 0:00:10]} 62. Kd2 {[%clk 0:00:05]}  f5 {[%clk 0:00:11]} 63. Bg8 {[%clk 0:00:05]}  f4 {[%clk 0:00:11]} 64. Bd5 {[%clk 0:00:06]}  Kd6 {[%clk 0:00:11]} 65. Bg2 {[%clk 0:00:06]}  Ke5 {[%clk 0:00:12]} 66. Bf1 {[%clk 0:00:06]}  Kd4 {[%clk 0:00:12]} 67. Ba6 {[%clk 0:00:07]}  f3 {[%clk 0:00:13]} 68. Bb5 {[%clk 0:00:07]}  f2 {[%clk 0:00:13]} 69. Ba6 {[%clk 0:00:08]}  Ra3 {[%clk 0:00:13]} 70. Bb5 {[%clk 0:00:07]}  Ra2+ {[%clk 0:00:13]} 71. Kc1 {[%clk 0:00:05]}  b3 {[%clk 0:00:13]} 72. Kb1 {[%clk 0:00:05]}  Kc3 {[%clk 0:00:14]} 0-1


[Site "https://www.chess.com"]